Cogmind - Beta 10.2 @@@ ROGUE MODE // 2021.08.16 @ 21:20:07 Player: Luigi Panache Result: Self-destructed Performance ------------- Evolutions (5) 2500 Regions Visited (19) 3800 Robots Destroyed (134) 670 Value Destroyed (4083) 4083 Prototype IDs (27) 540 Alien Tech Used (0) 0 Bonus (1345) 1345 TOTAL SCORE: 12938 Bonus ------- High Alert Combat Kills 70 Follower Combat Kills 1174 Network Hubs Disabled 200 Aligned with FarCom 300 Built Enhanced Grunts 300 A7 Reached Mainframe 300 Friendly Fire -999 Cogmind --------- Core Integrity 970/1000 Matter 300/300 Energy 290/290 System Corruption 0% Temperature Cool (0) Movement Core (850) Ox16 Location -5/Warlord Parts ------- > --- POWER (1) -------- Improved Deuterium Engine > --- PROPULSION (4) --- (None) > --- UTILITY (10) ----- High-capacity Storage Unit Enhanced Optical Array Improved Sensor Array Improved Signal Interpreter Advanced Terrain Scanner Makeshift Terrain Scan Processor Improved Hacking Suite Advanced Hacking Suite Mapping Drone Bay (3/3) > --- WEAPON (2) ------- Power Sword > --- INVENTORY (12) --- Micro Nuclear Core Micro Nuclear Core High-capacity Storage Unit High-capacity Matter Pod (200) Signal Interpreter Microactuators Maneuvering Thrusters Improved Utility Shielding Improved Medium Armor Plating Neutron Cannon Flak Gun Flail Peak State ------------ > --- POWER ------------ Improved Deuterium Engine > --- PROPULSION ------- Flying Fortress v7 > --- UTILITY ---------- High-capacity Storage Unit Enhanced Optical Array Improved Sensor Array Improved Signal Interpreter Advanced Terrain Scanner Makeshift Terrain Scan Processor Centrium Medium Armor Plating Improved Hacking Suite Advanced Hacking Suite Mapping Drone Bay > --- WEAPON ----------- Long-range Proton Cannon Power Sword > --- INVENTORY -------- Micro Nuclear Core Micro Nuclear Core High-capacity Storage Unit High-capacity Matter Pod Signal Interpreter Microactuators Maneuvering Thrusters Improved Utility Shielding Improved Medium Armor Plating Proton Cannon Flak Gun Flail [Rating: 92] Favorites ----------- Power Improved Deuterium Engine Engine Improved Deuterium Engine Power Core Light Nuclear Core Propulsion Light Treads Treads Light Treads Flight Unit Flying Fortress v7 Utility High-capacity Storage Unit Device Advanced Terrain Scanner Storage High-capacity Storage Unit Processor Makeshift Terrain Scan Processor Hackware Hacking Suite Protection Light Armor Plating Weapon Flak Gun Energy Gun EM Pulse Gun Energy Cannon Long-range Proton Cannon Ballistic Gun Flak Gun Launcher Rocket Launcher Slashing Weapon Katana Build | -11 -10 -10 -9 -9 -9 -8 -8 -7 -7 -7 -6 -6 -6 -6 -6 -5 -5 -5 -5 ------- Run | Scr Mat Min Mat Min Exi Min Mat Fac Low Low Fac Ext Cet Arc Hub Fac Upp Upp War Slots Evolved 10 | . . . 2 . . . 2 2 . . 2 . . . . 2 . . . Power . | . . . . . . . . . . . . . . . . . . . . Propulsion 2 | . . . 1 . . . . 1 . . . . . . . . . . . Utility 8 | . . . 1 . . . 2 1 . . 2 . . . . 2 . . . Weapon . | . . . . . . . . . . . . . . . . . . . . Parts Attached 114 | 7 8 . 15 1 3 2 25 16 2 3 6 7 2 6 3 4 4 . . Power 10 | 1 . . 2 . . . 2 3 . . 1 1 . . . . . . . Engine 8 | 1 . . 2 . . . 2 1 . . 1 1 . . . . . . . Core 2 | . . . . . . . . 2 . . . . . . . . . . . Reactor . | . . . . . . . . . . . . . . . . . . . . Propulsion 21 | 2 2 . 4 . 1 1 8 1 . 1 . . . . . . 1 . . Treads 18 | 2 2 . 4 . 1 1 8 . . . . . . . . . . . . Leg . | . . . . . . . . . . . . . . . . . . . . Wheel . | . . . . . . . . . . . . . . . . . . . . Hover . | . . . . . . . . . . . . . . . . . . . . Flight 3 | . . . . . . . . 1 . 1 . . . . . . 1 . . Utility 50 | 2 4 . 3 . 2 1 5 8 2 2 3 4 2 6 1 2 3 . . Device 19 | 1 . . 2 . . . 1 4 1 1 1 2 1 2 1 . 2 . . Storage 9 | 1 4 . . . 2 . 1 . . . . 1 . . . . . . . Processor 3 | . . . . . . . . . 1 . . 1 . . . 1 . . . Hackware 9 | . . . . . . . . 3 . . 1 . . 3 . 1 1 . . Protection 10 | . . . 1 . . 1 3 1 . 1 1 . 1 1 . . . . . Artifact . | . . . . . . . . . . . . . . . . . . . . Weapon 33 | 2 2 . 6 1 . . 10 4 . . 2 2 . . 2 2 . . . Energy Gun 9 | 1 1 . 2 . . . 3 2 . . . . . . . . . . . Energy Cannon 4 | . . . . . . . . 1 . . 1 . . . 1 1 . . . Ballistic Gun 10 | 1 . . 1 . . . 6 . . . . 2 . . . . . . . Ballistic Cannon . | . . . . . . . . . . . . . . . . . . . . Launcher 5 | . 1 . 1 1 . . 1 . . . 1 . . . . . . . . Special Weapon . | . . . . . . . . . . . . . . . . . . . . Impact Weapon . | . . . . . . . . . . . . . . . . . . . . Slashing Weapon 5 | . . . 2 . . . . 1 . . . . . . 1 1 . . . Piercing Weapon . | . . . . . . . . . . . . . . . . . . . . Special Melee Weapon . | . . . . . . . . . . . . . . . . . . . . Unidentified Prototypes 4 | . . . 1 . . . 1 1 . . . . 1 . . . . . . Parts Lost 23 | . 3 . 3 . . 2 4 2 . 1 . 4 1 . 1 . 1 1 . Power 4 | . . . 1 . . . 1 1 . . . 1 . . . . . . . Propulsion 2 | . 1 . . . . 1 . . . . . . . . . . . . . Utility 8 | . . . . . . 1 1 1 . 1 . 2 1 . . . 1 . . Weapon 9 | . 2 . 2 . . . 2 . . . . 1 . . 1 . . 1 . Highest Loss Streak 2 | . 1 . 1 . . 2 1 2 . 1 . 2 1 . 1 . 1 1 . Average Slot Usage (%) 88 | . 97 100 95 99 100 99 93 74 75 63 69 74 80 80 78 82 81 81 . Engine 8 | . 14 14 10 11 11 11 7 3 . . 3 5 6 6 6 5 5 5 . Treads 17 | . 28 28 32 33 33 32 27 1 . . . . . . . . . . . Flight 2 | . . . . . . . . 6 7 4 6 6 6 6 6 5 4 5 . Device 7 | . 8 . 3 . . . 5 17 15 11 8 8 13 13 13 11 16 17 . Storage 15 | . 19 28 22 22 22 22 20 7 7 7 6 6 6 6 6 5 5 5 . Processor 4 | . . . . . . . . . 4 7 6 8 13 13 13 17 17 17 . Hackware 5 | . . . . . . . . 10 15 8 10 13 13 13 13 17 11 11 . Protection 7 | . . . 7 11 11 11 14 7 2 4 12 9 6 5 6 5 5 5 . Energy Gun 5 | . 14 14 13 . . . 6 7 7 7 3 . . . . . . . . Ballistic Gun 4 | . 11 . 5 . . . 10 . . . . 8 13 13 7 . . . . Launcher 3 | . . 14 . 10 11 11 . . . . 1 3 . . . . . . . Slashing Weapon 3 | . . . . 11 11 11 . 6 7 7 4 . . . 2 5 5 5 . Naked Turns . | . . . . . . . . . . . . . . . . . . . . Heaviest Build 89 | 13 42 42 50 50 82 82 89 77 47 42 69 72 59 59 63 63 66 66 . Greatest Support 72 | 40 40 40 60 60 60 60 60 72 72 72 72 72 72 72 72 72 72 72 . Greatest Overweight (x) 20 | . 1 1 . . 1 1 1 1 . 13 . 20 . . . . . 16 . Average Overweight (x) . | . . 1 . . . 1 1 . . 1 . . . . . . . . . Largest Inventory Capacity 20 | 6 16 16 16 16 20 20 20 20 12 12 12 12 12 12 12 12 12 12 . Average Capacity 14 | 5 8 16 16 16 19 20 20 12 12 12 12 12 12 12 12 12 12 12 . Most Carried 20 | 6 10 12 16 16 20 20 20 20 12 12 12 12 11 12 12 12 12 12 . Average Carried 13 | 4 7 9 13 15 17 19 19 10 11 11 12 11 11 11 12 11 12 12 . Final Capacity 20 | 6 16 16 16 16 20 20 20 12 12 12 12 12 12 12 12 12 12 12 12 Final Carried 20 | 6 8 11 16 16 20 18 20 12 12 12 12 11 11 12 12 12 12 12 12 Class Distribution -------------------- 35% | Scavenger-Mutant 25% | Mutant 20% | Scavenger-Scout 8% | Hauler-Mutant 7% | Hacker-Mutant Dominant Class ---------------- Mutant | -10/Materials Mutant | -10/Mines Mutant | -9/Materials Scavenger-Mutant | -9/Mines Scavenger-Mutant | -9/Exiles Hauler-Mutant | -8/Mines Scavenger-Mutant | -8/Materials Hacker-Mutant | -7/Factory Hacker-Scout | -7/Lower Caves Assassin | -7/Lower Caves Hacker-Mutant | -6/Factory Scavenger-Mutant | -6/Extension Scavenger-Mutant | -6/Cetus Scavenger-Mutant | -6/Archives Scavenger-Scout | -6/Hub_04(d) Scavenger-Scout | -5/Factory Scavenger-Scout | -5/Upper Caves Scavenger-Scout | -5/Upper Caves Scavenger-Scout | -5/Warlord Resources | -11 -10 -10 -9 -9 -9 -8 -8 -7 -7 -7 -6 -6 -6 -6 -6 -5 -5 -5 -5 ----------- Run | Scr Mat Min Mat Min Exi Min Mat Fac Low Low Fac Ext Cet Arc Hub Fac Upp Upp War Matter Collected 3057 | 277 102 109 297 49 216 82 631 146 43 30 37 448 165 320 25 40 40 . . Remotely . | . . . . . . . . . . . . . . . . . . . . Salvage Created 4658 | 156 654 132 640 66 . 125 1041 146 . 30 194 661 208 220 130 . 110 145 . Parts 256 | 9 45 12 31 2 . 8 54 8 . 3 14 24 10 17 11 . 1 7 . Haulers Intercepted 4 | . 1 . 1 . . . 1 1 . . . . . . . . . . . Recyclers Shooed 6 | . 2 . 1 . . . 1 . . . . 2 . . . . . . . Parts Field Recycled . | . . . . . . . . . . . . . . . . . . . . Retrieved Matter . | . . . . . . . . . . . . . . . . . . . . Parts Self-Destructed 18 | . . . . . . . . . 5 . . . . . . . 3 10 . Prevented 3 | . . . . . . . . . . . . . . . . . . 3 . Kills | -11 -10 -10 -9 -9 -9 -8 -8 -7 -7 -7 -6 -6 -6 -6 -6 -5 -5 -5 -5 ------- Run | Scr Mat Min Mat Min Exi Min Mat Fac Low Low Fac Ext Cet Arc Hub Fac Upp Upp War Combat Hostiles Destroyed 83 | . 12 5 11 5 . 5 19 1 . 1 8 7 4 . . . . 5 . Guns 49 | . 11 2 8 . . . 17 . . . . 7 4 . . . . . . Cannons 5 | . . . . . . . . . . . . . . . . . . 5 . AOE 27 | . 1 3 3 5 . 5 2 . . . 8 . . . . . . . . Classes Destroyed 14 | 2 6 . 3 . . 1 . . . 1 1 . . . . . . . . Worker 11 | . 1 3 1 . . . 1 . . . 2 . . . 3 . . . . Builder 4 | . . . 1 . . . 1 . . . 1 . . . 1 . . . . Tunneler 7 | 3 . 1 . . . 1 . . . . 2 . . . . . . . . Hauler 4 | . 1 . 1 . . . 1 1 . . . . . . . . . . . Recycler 4 | 1 1 . . . . . . . . . . 2 . . . . . . . Operator 12 | . 2 . 1 . . . 1 1 . . . 1 . 6 . . . . . Watcher 8 | . 2 . 2 . . . 1 . . . . 1 . . 2 . . . . Swarmer 21 | . 3 3 . 3 . . 2 . . . 4 . 1 . . . . 5 . Grunt 39 | . 9 2 8 2 . 3 9 . . . 3 3 . . . . . . . Duelist 3 | . . . 1 . . . 1 . . . . 1 . . . . . . . Sentry 13 | . . . 2 . . . 7 1 . . . 3 . . . . . . . Hunter 2 | . . . . . . 2 . . . . . . . . . . . . . Programmer 2 | . . . . . . . . . . . 1 . 1 . . . . . . Cetus Guard 2 | . . . . . . . . . . . . . 2 . . . . . . Enhanced Grunt 1 | . . . . . . . . . . . . . . . . . 1 . . Master Thief 1 | . . . . . . . . . . 1 . . . . . . . . . Best Kill Streak 10 | 2 3 3 6 5 . 4 4 1 . 1 10 3 2 2 6 . . 3 . Combat Bots Only 8 | . 3 3 3 5 . 4 4 1 . 1 8 3 2 . . . . 3 . Max Kills in Single Turn 5 | 1 2 1 4 2 . 1 2 1 . 1 3 1 1 1 5 . 1 1 . Gunslinging . | . . . . . . . . . . . . . . . . . . . . Exploded 2 | . 1 1 2 2 . 1 1 . . . 2 . . . . . . . . Melee . | . . . . . . . . . . . . . . . . . . . . Uniques/NPCs Destroyed . | . . . . . . . . . . . . . . . . . . . . Combat | -11 -10 -10 -9 -9 -9 -8 -8 -7 -7 -7 -6 -6 -6 -6 -6 -5 -5 -5 -5 -------- Run | Scr Mat Min Mat Min Exi Min Mat Fac Low Low Fac Ext Cet Arc Hub Fac Upp Upp War Damage Taken 5141 | . 387 155 414 109 60 220 1122 316 . 166 435 841 235 47 142 17 10 465 . Core 573 | . . 6 16 7 . . 167 90 . 80 22 123 32 . . . . 30 . Absorbed by Shields 238 | . . . . . . . . . . . . 136 102 . . . . . . Core Remaining (%) 85 | 100 . 97 . . . 94 69 . . 75 . . . . 79 . . . . Volleys Fired 352 | 17 45 8 48 7 1 13 80 13 . 17 9 37 15 26 2 3 2 9 . Largest 2 | 2 2 2 2 1 1 1 2 1 . 1 1 2 2 2 1 1 1 1 . Hottest 118 | 70 70 70 85 33 33 33 73 50 . 55 43 118 56 56 75 81 81 81 . Shots Fired 537 | 34 75 9 71 7 1 13 145 13 . 17 9 45 30 52 2 3 2 9 . Gun 477 | 34 75 4 69 . . . 142 13 . 17 . 41 30 52 . . . . . Cannon 18 | . . . . . . . . . . . . 2 . . 2 3 2 9 . Launcher 42 | . . 5 2 7 1 13 3 . . . 9 2 . . . . . . . Special . | . . . . . . . . . . . . . . . . . . . . Kinetic 272 | 17 30 . 13 . . . 89 . . . . 41 30 52 . . . . . Thermal 38 | 17 21 . . . . . . . . . . . . . . . . . . Explosive 42 | . . 5 2 7 1 13 3 . . . 9 2 . . . . . . . Electromagnetic 185 | . 24 4 56 . . . 53 13 . 17 . 2 . . 2 3 2 9 . Robot Hit Streak 28 | 8 16 5 12 2 . 9 28 4 . 6 2 10 18 5 . 3 . 5 . Robot Miss Streak 13 | 1 3 . 3 3 . 2 4 2 . 2 2 13 10 11 . . 2 3 . Penetration Max . | . . . . . . . . . . . . . . . . . . . . Secondary Targets 4 | . . . 1 . . . 2 . . . . . 1 . . . . . . Max Gunslinging Chain 1 | . . . 1 . . . 1 . . . . . 1 . . . . . . Shots Hit Robots 425 | 24 55 4 51 5 . 10 118 11 . 14 10 40 26 48 . 3 . 6 . Core Hits 351 | 7 33 13 26 7 . 12 56 5 . 3 22 55 35 60 9 2 1 5 . Critical Hits 2 | . 1 . . . . . . . . . 1 . . . . . . . . Critical Kills . | . . . . . . . . . . . . . . . . . . . . Critical Parts Destroyed 2 | . 1 . . . . . . . . . 1 . . . . . . . . Melee Attacks 29 | . . . 1 1 . . . 7 . 1 11 . . . 6 . . 2 . Impact . | . . . . . . . . . . . . . . . . . . . . Slashing 29 | . . . 1 1 . . . 7 . 1 11 . . . 6 . . 2 . Piercing . | . . . . . . . . . . . . . . . . . . . . Sneak Attacks 6 | . . . 1 1 . . . . . . 4 . . . . . . . . Combat Hostiles . | . . . . . . . . . . . . . . . . . . . . Follow-up Attacks . | . . . . . . . . . . . . . . . . . . . . Damage Inflicted 11648 | 248 786 406 1179 662 . 786 2142 235 . 248 1462 760 552 895 970 87 21 209 . Guns 6023 | 248 682 22 781 . . . 1824 156 . 217 . 646 552 895 . . . . . Cannons 346 | . . . . . . . . . . . . 29 . . . 87 21 209 . Explosions 4461 | . 96 326 295 555 . 776 318 . . . 1040 85 . . 970 . . . . Melee 742 | . . . 103 107 . . . 79 . 31 422 . . . . . . . . Ramming 76 | . 8 58 . . . 10 . . . . . . . . . . . . . Kinetic 3487 | 98 173 . 89 . . . 1034 . . . . 646 552 895 . . . . . Thermal 543 | 150 321 . . . . . 72 . . . . . . . . . . . . Explosive 3323 | . . 326 295 555 . 776 246 . . . 1040 85 . . . . . . . Electromagnetic 3477 | . 284 22 692 . . . 790 156 . 217 . 29 . . 970 87 21 209 . Impact . | . . . . . . . . . . . . . . . . . . . . Slashing 742 | . . . 103 107 . . . 79 . 31 422 . . . . . . . . Piercing . | . . . . . . . . . . . . . . . . . . . . Highest Corruption 3 | . . . . . . . . 3 3 3 . . 1 1 1 . . . . Average Corruption 2 | . . . . . . . . 3 3 3 . . 1 1 1 . . . . Corruption Purged 1 | . . . . . . . . . . . . . . 1 . . . . . Effects 11 | . . . . . . . . 2 4 4 . . . 1 . . . . . Message Errors 4 | . . . . . . . . 1 1 2 . . . . . . . . . Matter Fused 1 | . . . . . . . . . 1 . . . . . . . . . . Heat Flow Errors 1 | . . . . . . . . . . 1 . . . . . . . . . Energy Discharges 1 | . . . . . . . . . 1 . . . . . . . . . . Data Loss (minor) 3 | . . . . . . . . . 1 1 . . . 1 . . . . . Targeting Errors 1 | . . . . . . . . 1 . . . . . . . . . . . Overload Shots . | . . . . . . . . . . . . . . . . . . . . Overflow Damage 421 | . 38 32 . 115 . 2 22 . . . 125 . . . 87 . . . . Projectiles . | . . . . . . . . . . . . . . . . . . . . Explosions 288 | . 38 32 . 38 . 2 22 . . . 69 . . . 87 . . . . Melee 133 | . . . . 77 . . . . . . 56 . . . . . . . . Knockbacks . | . . . . . . . . . . . . . . . . . . . . Impact . | . . . . . . . . . . . . . . . . . . . . Kinetic . | . . . . . . . . . . . . . . . . . . . . Secondary . | . . . . . . . . . . . . . . . . . . . . Self-Inflicted Damage 326 | . 78 22 . 37 . 48 23 . . . 13 . . . 105 . . . . Shots 10 | . 1 1 . 2 . 3 1 . . . 1 . . . 1 . . . . Rammed 7 | . 1 5 . . . 1 . . . . . . . . . . . . . Targets Rammed 8 | . 1 6 . . . 1 . . . . . . . . . . . . . Kicked . | . . . . . . . . . . . . . . . . . . . . Crushed 1 | . . 1 . . . . . . . . . . . . . . . . . Highest Temperature 260 | 140 122 39 90 . . 6 83 104 . 260 10 130 15 15 32 120 67 152 . Average Temperature 36 | 57 41 16 29 . . 4 25 41 . 114 3 27 10 12 19 66 39 72 . Received Heat Transfer 1213 | . 129 60 186 . . 9 414 78 . 9 36 244 21 9 18 . . . . Siege Activations . | . . . . . . . . . . . . . . . . . . . . Robots Corrupted 3 | . . . . . . . . 1 . 1 . . . . 1 . . . . Combat Hostiles 2 | . . . . . . . . 1 . 1 . . . . . . . . . Parts Fried 19 | . 1 . 6 . . . 2 . . 2 . 2 1 . 3 . 1 1 . Impact Corruptions . | . . . . . . . . . . . . . . . . . . . . Robots Melted . | . . . . . . . . . . . . . . . . . . . . Combat Hostiles . | . . . . . . . . . . . . . . . . . . . . Parts Melted 2 | . 1 . . . . . . . . . . . 1 . . . . . . Heat Transferred 1260 | 444 716 . . . . . 100 . . . . . . . . . . . . Parts Sabotaged . | . . . . . . . . . . . . . . . . . . . . Parts Stolen 5 | . . . . . . . . . . 3 . . . . . . . 2 . Parts Stripped . | . . . . . . . . . . . . . . . . . . . . Power Chain Reactions 2 | . . . . . . . 2 . . . . . . . . . . . . Missiles Intercepted . | . . . . . . . . . . . . . . . . . . . . Alert | -11 -10 -10 -9 -9 -9 -8 -8 -7 -7 -7 -6 -6 -6 -6 -6 -5 -5 -5 -5 ------- Run | Scr Mat Min Mat Min Exi Min Mat Fac Low Low Fac Ext Cet Arc Hub Fac Upp Upp War Peak Influence 803 | 20 319 150 234 192 . 167 303 224 . . 406 518 631 517 799 803 . . . Initial 381 | . 13 124 . 72 . . 18 129 . . 64 198 279 252 180 381 . . . Average 187 | 6 108 85 86 153 . 71 167 160 . . 141 373 475 483 385 523 . . . Maximum Alert Level 3 | . 1 . 1 . . . 1 1 . . 2 2 2 2 3 3 . . . Low Security (%) 68 | 100 89 100 92 100 . 100 66 80 . . 77 2 . . 15 . . . . Level 1 18 | . 10 . 7 . . . 33 19 . . 19 61 52 7 44 24 . . . Level 2 11 | . . . . . . . . . . . 2 35 47 92 21 51 . . . Level 3 1 | . . . . . . . . . . . . . . . 17 24 . . . Level 4 . | . . . . . . . . . . . . . . . . . . . . Level 5 . | . . . . . . . . . . . . . . . . . . . . High Security . | . . . . . . . . . . . . . . . . . . . . Max Security . | . . . . . . . . . . . . . . . . . . . . Squads Dispatched 22 | . 5 . 4 . . . 1 4 . . 1 2 . . 3 2 . . . Investigation 9 | . 3 . 2 . . . . 1 . . 1 1 . . . 1 . . . Extermination 1 | . . . . . . . . . . . . . . . . 1 . . . Reinforcement 8 | . 2 . 2 . . . 1 . . . . . . . 3 . . . . Assault 1 | . . . . . . . . . . . . 1 . . . . . . . Garrison 3 | . . . . . . . . 3 . . . . . . . . . . . Intercept . | . . . . . . . . . . . . . . . . . . . . Construction Impeded 1 | . . . . . . . . . . . . . . . 1 . . . . Haulers Reinforced . | . . . . . . . . . . . . . . . . . . . . Stealth | -11 -10 -10 -9 -9 -9 -8 -8 -7 -7 -7 -6 -6 -6 -6 -6 -5 -5 -5 -5 --------- Run | Scr Mat Min Mat Min Exi Min Mat Fac Low Low Fac Ext Cet Arc Hub Fac Upp Upp War Distress Signals 10 | . 2 . 3 . . . 2 . . . . 2 1 . . . . . . Communications Jammed . | . . . . . . . . . . . . . . . . . . . . Distress Signals . | . . . . . . . . . . . . . . . . . . . . Times Spotted 191 | . 20 5 19 5 7 4 28 4 . 4 11 22 10 27 3 7 4 11 . Peak Tracking Total 9 | . 4 3 5 3 9 2 4 1 . 2 4 9 5 2 2 5 2 5 . Tactical Retreats 9 | . . . . . . . 2 1 . . 1 5 . . . . . . . Traps | -11 -10 -10 -9 -9 -9 -8 -8 -7 -7 -7 -6 -6 -6 -6 -6 -5 -5 -5 -5 ------- Run | Scr Mat Min Mat Min Exi Min Mat Fac Low Low Fac Ext Cet Arc Hub Fac Upp Upp War Traps Triggered 6 | . 3 . . . . . . . . . 1 2 . . . . . . . Indirectly . | . . . . . . . . . . . . . . . . . . . . Trap Hack Attempts . | . . . . . . . . . . . . . . . . . . . . Triggered . | . . . . . . . . . . . . . . . . . . . . Disarmed . | . . . . . . . . . . . . . . . . . . . . Reprogrammed . | . . . . . . . . . . . . . . . . . . . . Reused . | . . . . . . . . . . . . . . . . . . . . Traps Extracted . | . . . . . . . . . . . . . . . . . . . . Installed . | . . . . . . . . . . . . . . . . . . . . Triggered 1 | . . . . . . . . 1 . . . . . . . . . . . Machines | -11 -10 -10 -9 -9 -9 -8 -8 -7 -7 -7 -6 -6 -6 -6 -6 -5 -5 -5 -5 ---------- Run | Scr Mat Min Mat Min Exi Min Mat Fac Low Low Fac Ext Cet Arc Hub Fac Upp Upp War Machines Disabled 23 | . 3 1 . . 1 1 1 . . . . 3 . . 13 . . . . Max in Single Turn 12 | . 2 1 . . 1 1 1 . . . . 2 . . 12 . . . . Network Hub 1 | . . . . . . . . . . . . . . . 1 . . . . Machines Sabotaged . | . . . . . . . . . . . . . . . . . . . . Garrisons Compromised . | . . . . . . . . . . . . . . . . . . . . Overloaded Fab Kills . | . . . . . . . . . . . . . . . . . . . . Fab Network Shutdowns . | . . . . . . . . . . . . . . . . . . . . Hacking | -11 -10 -10 -9 -9 -9 -8 -8 -7 -7 -7 -6 -6 -6 -6 -6 -5 -5 -5 -5 --------- Run | Scr Mat Min Mat Min Exi Min Mat Fac Low Low Fac Ext Cet Arc Hub Fac Upp Upp War Machines Accessed 42 | . 3 . 4 . 2 . 4 4 . . 2 17 1 . 2 2 . 1 . Terminals 31 | . 2 . 1 . . . 4 2 . . 1 17 1 . 2 1 . . . Fabricators 2 | . . . . . . . . . . . 1 . . . . 1 . . . Repair Stations 1 | . . . 1 . . . . . . . . . . . . . . . . Recycling Units 3 | . 1 . 2 . . . . . . . . . . . . . . . . Scanalyzers 1 | . . . . . . . . 1 . . . . . . . . . . . Garrison Access 1 | . . . . . . . . 1 . . . . . . . . . . . Total Hacks 89 | . 8 . 9 . 2 . 11 14 . . 6 26 1 . 3 8 . 1 . Successful 46 | . 6 . 7 . 2 . 2 7 . . 1 16 1 . . 3 . 1 . Failed 43 | . 2 . 2 . . . 9 7 . . 5 10 . . 3 5 . . . Catastrophic 7 | . . . . . . . 1 1 . . . 1 . . 1 3 . . . Database Lockouts . | . . . . . . . . . . . . . . . . . . . . Manual 38 | . 4 . 2 . 1 . 9 3 . . 4 5 1 . 3 6 . . . Terminals 68 | . 7 . 3 . . . 11 7 . . 4 26 1 . 3 6 . . . Fabricators 4 | . . . . . . . . . . . 2 . . . . 2 . . . Repair Stations 4 | . . . 4 . . . . . . . . . . . . . . . . Recycling Units 3 | . 1 . 2 . . . . . . . . . . . . . . . . Scanalyzers 4 | . . . . . . . . 4 . . . . . . . . . . . Garrison Access 3 | . . . . . . . . 3 . . . . . . . . . . . Terminal Hacks 34 | . 5 . 1 . 2 . 2 5 . . 1 15 1 . . 1 . 1 . Record 1 | . . . . . 1 . . . . . . . . . . . . . . Part Schematic 2 | . 1 . . . . . . 1 . . . . . . . . . . . Open Door 16 | . . . . . . . . . . . . 14 1 . . . . 1 . Branch Access Points 3 | . 1 . . . . . . 1 . . 1 . . . . . . . . Terminal Index 3 | . . . . . . . . 1 . . . 1 . . . 1 . . . Unreport Threat 1 | . . . . . . . 1 . . . . . . . . . . . . Locate Traps 1 | . . . . . . . . 1 . . . . . . . . . . . Recall Investigation 1 | . 1 . . . . . . . . . . . . . . . . . . Hauler Manifests 3 | . 1 . 1 . . . 1 . . . . . . . . . . . . Registered Components 2 | . 1 . . . . . . 1 . . . . . . . . . . . EX-Prototype ID Bank 1 | . . . . . 1 . . . . . . . . . . . . . . Fabricator Hacks 2 | . . . . . . . . . . . . . . . . 2 . . . Load Schematic 1 | . . . . . . . . . . . . . . . . 1 . . . Build 1 | . . . . . . . . . . . . . . . . 1 . . . Repair Station Hacks 4 | . . . 4 . . . . . . . . . . . . . . . . Scan Component 2 | . . . 2 . . . . . . . . . . . . . . . . Repair 2 | . . . 2 . . . . . . . . . . . . . . . . Recycling Unit Hacks . | . . . . . . . . . . . . . . . . . . . . Scanalyzer 2 | . . . . . . . . 2 . . . . . . . . . . . Insert Component 1 | . . . . . . . . 1 . . . . . . . . . . . Analyze 1 | . . . . . . . . 1 . . . . . . . . . . . Garrison Access Hacks . | . . . . . . . . . . . . . . . . . . . . Unauthorized Hacks 4 | . 1 . 2 . . . . . . . . 1 . . . . . . . Terminals 1 | . . . . . . . . . . . . 1 . . . . . . . Botnet 1 | . . . . . . . . . . . . 1 . . . . . . . Fabricators . | . . . . . . . . . . . . . . . . . . . . Repair Stations . | . . . . . . . . . . . . . . . . . . . . Recycling Units 3 | . 1 . 2 . . . . . . . . . . . . . . . . Tunnel 3 | . 1 . 2 . . . . . . . . . . . . . . . . Scanalyzers . | . . . . . . . . . . . . . . . . . . . . Garrison Access . | . . . . . . . . . . . . . . . . . . . . Data Cores Recovered 1 | . . . . . . . . 1 . . . . . . . . . . . Used 1 | . . . . . . . . 1 . . . . . . . . . . . Hacking Detections 22 | . 2 . 2 . . . 4 2 . . 2 5 1 . 2 2 . . . Full Trace Events 7 | . . . 2 . . . 1 1 . . 1 1 . . . 1 . . . Feedback Events 1 | . . . . . . . . 1 . . . . . . . . . . . Hackware Fried 1 | . . . . . . . . 1 . . . . . . . . . . . Feedback Blocked . | . . . . . . . . . . . . . . . . . . . . Robot Schematics Acquired . | . . . . . . . . . . . . . . . . . . . . Robots Built . | . . . . . . . . . . . . . . . . . . . . Matter . | . . . . . . . . . . . . . . . . . . . . Time . | . . . . . . . . . . . . . . . . . . . . Total Robot Build Rating . | . . . . . . . . . . . . . . . . . . . . Part Schematics Acquired 3 | . 1 . . . . . . 2 . . . . . . . . . . . Parts Built 2 | . . . . . . . . . . . . . . . . 2 . . . Matter 168 | . . . . . . . . . . . . . . . . 168 . . . Time 28 | . . . . . . . . . . . . . . . . 28 . . . Total Part Build Rating 8 | . . . . . . . . . . . . . . . . 8 . . . Parts Repaired 2 | . . . 2 . . . . . . . . . . . . . . . . Time 106 | . . . 106 . . . . . . . . . . . . . . . . Parts Recycled . | . . . . . . . . . . . . . . . . . . . . Recycled Matter . | . . . . . . . . . . . . . . . . . . . . Retrieved Matter . | . . . . . . . . . . . . . . . . . . . . Retrieved Components . | . . . . . . . . . . . . . . . . . . . . Parts Scanalyzed 1 | . . . . . . . . 1 . . . . . . . . . . . Part Schematics Acquired 1 | . . . . . . . . 1 . . . . . . . . . . . Parts Damaged . | . . . . . . . . . . . . . . . . . . . . Bothacking | -11 -10 -10 -9 -9 -9 -8 -8 -7 -7 -7 -6 -6 -6 -6 -6 -5 -5 -5 -5 ------------ Run | Scr Mat Min Mat Min Exi Min Mat Fac Low Low Fac Ext Cet Arc Hub Fac Upp Upp War Used RIF Installer . | . . . . . . . . . . . . . . . . . . . . Robots Hacked . | . . . . . . . . . . . . . . . . . . . . Non-combat . | . . . . . . . . . . . . . . . . . . . . Combat . | . . . . . . . . . . . . . . . . . . . . Robot Hacks Applied . | . . . . . . . . . . . . . . . . . . . . Relay Couplers Released . | . . . . . . . . . . . . . . . . . . . . Robots Rewired . | . . . . . . . . . . . . . . . . . . . . Allies Hacked . | . . . . . . . . . . . . . . . . . . . . Hacks Repelled . | . . . . . . . . . . . . . . . . . . . . Allies | -11 -10 -10 -9 -9 -9 -8 -8 -7 -7 -7 -6 -6 -6 -6 -6 -5 -5 -5 -5 -------- Run | Scr Mat Min Mat Min Exi Min Mat Fac Low Low Fac Ext Cet Arc Hub Fac Upp Upp War Total Allies 23 | . . . . . . . . . . . . 18 5 . . . . . . Largest Group 11 | . . . . . . . . . . . . 8 11 11 10 5 2 2 . Highest-Rated Group 761 | . . . . . . . . . . . . 391 761 761 628 399 188 188 . Highest-Rated Ally 156 | . . . . . . . . . . . . 156 156 133 94 94 94 94 . Total Orders 4 | . . . . . . . . . . . . . . . . . 4 . . STAY 1 | . . . . . . . . . . . . . . . . . 1 . . EXPLORE 2 | . . . . . . . . . . . . . . . . . 2 . . RETURN 1 | . . . . . . . . . . . . . . . . . 1 . . Ally Attacks 237 | . . . . . . . . . . . . 70 63 19 25 29 23 8 . Total Damage 5963 | . . . . . . . . . . . . 1322 1190 411 768 1339 692 241 . Kills 43 | . . . . . . . . . . . . 8 7 4 7 9 5 3 . Allies Corrupted 2 | . . . . . . . . . . . . 1 . . . 1 . . . Allies Melted . | . . . . . . . . . . . . . . . . . . . . Intel | -11 -10 -10 -9 -9 -9 -8 -8 -7 -7 -7 -6 -6 -6 -6 -6 -5 -5 -5 -5 ------- Run | Scr Mat Min Mat Min Exi Min Mat Fac Low Low Fac Ext Cet Arc Hub Fac Upp Upp War Robot Analysis Total . | . . . . . . . . . . . . . . . . . . . . Derelict Logs Recovered 7 | . . 1 . 1 . . . . 1 . . . . . . . 2 2 . Drone Launches 1 | . . . . . . . . . . . . . . . . . 1 . . Drone Recoveries 1 | . . . . . . . . . . . . . . . . . 1 . . Exploration | -11 -10 -10 -9 -9 -9 -8 -8 -7 -7 -7 -6 -6 -6 -6 -6 -5 -5 -5 -5 ------------- Run | Scr Mat Min Mat Min Exi Min Mat Fac Low Low Fac Ext Cet Arc Hub Fac Upp Upp War Turns Passed 8792 | 144 705 861 738 273 604 705 1048 373 145 135 384 524 249 296 196 266 491 655 . Spaces Moved 5714 | 52 342 460 288 159 338 376 421 379 170 45 507 514 113 234 277 238 242 559 . Core 9 | 3 . . . . . . . . . 4 . 1 . . . . . 1 . Treads 2444 | 49 342 460 288 159 338 376 421 11 . . . . . . . . . . . Legs . | . . . . . . . . . . . . . . . . . . . . Wheels . | . . . . . . . . . . . . . . . . . . . . Hover . | . . . . . . . . . . . . . . . . . . . . Flight 3261 | . . . . . . . . 368 170 41 507 513 113 234 277 238 242 558 . Fastest Speed 50 | 50 160 180 160 160 160 180 180 50 50 50 50 50 50 50 50 50 50 50 . Average Speed 103 | 153 160 180 160 160 175 180 180 53 50 106 50 51 50 50 50 50 50 51 . Slowest Speed 1050 | 160 180 180 160 160 180 180 180 180 50 700 50 1050 50 50 50 50 50 850 . Overloaded Moves . | . . . . . . . . . . . . . . . . . . . . Propulsion Burnouts . | . . . . . . . . . . . . . . . . . . . . Robots Hopped 32 | . . . . . . . . 3 . . 15 6 2 1 5 . . . . Cave-ins Triggered . | . . . . . . . . . . . . . . . . . . . . Exploration Rate (%) 43 | 5 69 94 39 31 70 96 32 15 28 5 16 66 61 79 31 8 69 61 2 Regions Visited 19 Branch Regions 13 Pre-discovered Areas 6 | . 1 1 2 . 1 . . . . . . . . . . . . 1 . Known Exits Taken 11 | . 1 . . . . . . 1 1 . 1 1 1 1 1 1 1 1 . Unknown Exits Taken 8 | 1 . 1 1 1 1 1 1 . . 1 . . . . . . . . . Scrap Searched 9 | . . 2 . 1 . 1 . . 1 . . . . . . . 3 1 . Spaces Dug 21 | . . 9 . . . . . 2 . . 3 . . . 6 . . 1 . Terrain Destroyed 468 | . 22 41 14 43 3 79 30 2 . . 56 37 . . 140 . . 1 . Melee 12 | . . . . . . . . 2 . . 3 . . . 6 . . 1 . Projectile . | . . . . . . . . . . . . . . . . . . . . AOE 456 | . 22 41 14 43 3 79 30 . . . 53 37 . . 134 . . . . Terrain Rammed . | . . . . . . . . . . . . . . . . . . . . Walls Destroyed . | . . . . . . . . . . . . . . . . . . . . Machines Disabled . | . . . . . . . . . . . . . . . . . . . . Actions | -11 -10 -10 -9 -9 -9 -8 -8 -7 -7 -7 -6 -6 -6 -6 -6 -5 -5 -5 -5 --------- Run | Scr Mat Min Mat Min Exi Min Mat Fac Low Low Fac Ext Cet Arc Hub Fac Upp Upp War Total 8004 | 83 431 480 495 170 350 391 571 526 229 112 594 717 271 357 317 380 608 922 . Wait 1706 | . 24 2 124 . . . 29 90 56 44 73 154 144 89 33 134 359 351 . Move 5638 | 51 341 459 287 158 337 375 420 373 169 44 479 504 108 231 266 237 241 558 . Hop 25 | . . . . . . . . 2 . . 12 3 2 1 5 . . . . Pick Up 52 | 7 7 4 10 2 4 . 2 9 . 1 1 . . 1 1 2 . 1 . Fast Attach 39 | 7 . . 3 . . . 7 3 1 3 4 4 1 3 . . 3 . . Attach 28 | . 3 . 6 1 1 2 2 9 . . . 1 . . . 3 . . . Detach 6 | . . . 4 . . . . 1 1 . . . . . . . . . . Swap 47 | . 5 . 6 . 2 . 16 4 1 . 2 2 1 3 3 1 1 . . Drop 63 | 1 5 1 6 1 5 . 15 15 1 2 3 1 . 3 1 . 2 1 . Fire 352 | 17 45 8 48 7 1 13 80 13 . 17 9 37 15 26 2 3 2 9 . Melee 29 | . . . 1 1 . . . 7 . 1 11 . . . 6 . . 2 . Ram . | . . . . . . . . . . . . . . . . . . . . Kick . | . . . . . . . . . . . . . . . . . . . . Crush 8 | . 1 6 . . . 1 . . . . . . . . . . . . . Escape Stasis 11 | . . . . . . . . . . . . 11 . . . . . . . Rewire . | . . . . . . . . . . . . . . . . . . . . Trap . | . . . . . . . . . . . . . . . . . . . . Miscellaneous . | . . . . . . . . . . . . . . . . . . . . Route ------- -11/Scrapyard -10/Materials (discovered 3 exits: *Mat x2 / *Min) -10/Mines (discovered 2 exits: *Mat x2) -9/Materials (discovered 3 exits: *Mat / [*Min] / [*Sto]) -9/Mines -9/Exiles -8/Mines (discovered 2 exits: *Mat x2) -8/Materials -7/Factory (discovered 2 exits: *Low x2) -7/Lower Caves -7/Lower Caves -6/Factory (discovered 4 exits: Low x2 / *Ext x2) -6/Extension (discovered 2 exits: *Fac / *Cet) -6/Cetus -6/Archives (discovered 2 exits: *Hub x2) -6/Hub_04(d) (discovered 2 exits: *Fac x2) -5/Factory -5/Upper Caves -5/Upper Caves -5/Warlord History --------- Turn | Location | Event 44 | -11/Scrapyard | Discovered new exit (range 15) 145 | -11/Scrapyard | Entered Materials 311 | -10/Materials | Build established: Mutant 396 | -10/Materials | Discovered new exit (range 15) 474 | -10/Materials | Identified exit to Mines 683 | -10/Materials | Discovered new exit (range 16) 850 | -10/Materials | Entered Mines 1113 | -10/Mines | Found a damaged Exp. Sensor Array with a note attached 1117 | -10/Mines | Found Prototype Device 1152 | -10/Mines | Received a Rocket Launcher from a helpful Derelict 1514 | -10/Mines | Discovered new exit (range 7) 1688 | -10/Mines | Discovered new exit (range 10) 1711 | -10/Mines | Entered Materials 1711 | -9/Materials | Evolved 2 slots: Propulsion x1, Utility x1 1720 | -9/Materials | Identified Exp. Sensor Array 1802 | -9/Materials | Repaired Exp. Sensor Array 1831 | -9/Materials | Repaired Lgt. Treads 2212 | -9/Materials | Discovered new exit (range 5) 2359 | -9/Materials | Build established: Scavenger-Mutant 2390 | -9/Materials | Discovered new exit (range 15) 2437 | -9/Materials | Discovered new exit (range 10) 2449 | -9/Materials | Entered Mines 2485 | -9/Mines | Met a Derelict bent on vengeance 2514 | -9/Mines | Learned Materials stockpile data 2714 | -9/Mines | Deemed a non-threat by the Exiles lab entrance 2716 | -9/Mines | Discovered new exit (range 5) 2722 | -9/Mines | Entered Exiles 2761 | -9/Exiles | Met 8R-AWN 2788 | -9/Exiles | Met EX-HEX 2931 | -9/Exiles | Met EX-DEC 2972 | -9/Exiles | Learned location of Zion (-7) 3013 | -9/Exiles | Met EX-BIN 3037 | -9/Exiles | Aligned with FarCom system 3039 | -9/Exiles | Given EX-Vault access code 3085 | -9/Exiles | Opened EX-Vault 3099 | -9/Exiles | Found Flying Fortress v7 3140 | -9/Exiles | Warned to stay clear of 0b10 Research branches 3283 | -9/Exiles | Attacked by the Exiles 3311 | -9/Exiles | Discovered new exit (range 10) 3326 | -9/Exiles | Left Exiles lab with Flying Fortress v7 3326 | -9/Exiles | Entered Mines 3352 | -8/Mines | Discovered new exit (range 8) 3399 | -8/Mines | Build established: Hauler-Mutant 3871 | -8/Mines | Discovered new exit (range 7) 4031 | -8/Mines | Entered Materials 4031 | -8/Materials | Evolved 2 slots: Utility x2 4125 | -8/Materials | Build established: Scavenger-Mutant 5047 | -8/Materials | Discovered new exit (range 11) 5079 | -8/Materials | Entered Factory 5079 | -7/Factory | Evolved 2 slots: Propulsion x1, Utility x1 5241 | -7/Factory | Identified exit to Lower Caves 5258 | -7/Factory | Hacking Suite fried by hacking feedback 5452 | -7/Factory | Entered Lower Caves 5467 | -7/Lower Caves | Identified exit to Lower Caves 5502 | -7/Lower Caves | Encountered a Warlord checkpoint 5597 | -7/Lower Caves | Entered another Lower Caves area 5597 | -7/Lower Caves | Spotted 5G-UQI(f) 5598 | -7/Lower Caves | Encountered a Master Thief 5612 | -7/Lower Caves | Exp. Sensor Array stolen by Master Thief 5615 | -7/Lower Caves | Destroyed 5G-UQI(f) 5631 | -7/Lower Caves | Lgt. Nuclear Core stolen by Master Thief 5721 | -7/Lower Caves | Discovered new exit (range 8) 5732 | -7/Lower Caves | Entered Factory 5732 | -6/Factory | Evolved 2 slots: Utility x2 5858 | -6/Factory | Identified exit to Lower Caves 5858 | -6/Factory | Identified exit to Extension 6066 | -6/Factory | Destroyed 8 combat bots 6116 | -6/Factory | Entered Extension 6169 | -6/Extension | Build established: Hacker-Mutant 6232 | -6/Extension | Rescued a captive Derelict 6233 | -6/Extension | Rescued a captive Derelict 6294 | -6/Extension | Rescued a captive Derelict 6310 | -6/Extension | Rescued a captive Derelict 6317 | -6/Extension | Rescued a captive Derelict 6335 | -6/Extension | Rescued a captive Derelict 6338 | -6/Extension | Rescued a captive Derelict 6441 | -6/Extension | Disrupted transfer network 6446 | -6/Extension | Rescued a captive Derelict 6447 | -6/Extension | Rescued a captive Derelict 6466 | -6/Extension | First assault squad dispatched 6467 | -6/Extension | Spotted B-75 Beast 6471 | -6/Extension | Spotted B-75 Beast 6486 | -6/Extension | Rescued a captive Derelict 6502 | -6/Extension | Rescued a captive Derelict 6507 | -6/Extension | Rescued a captive Derelict 6520 | -6/Extension | Rescued a captive Derelict 6529 | -6/Extension | Rescued a captive Derelict 6530 | -6/Extension | Rescued a captive Derelict 6553 | -6/Extension | Rescued a captive Derelict 6554 | -6/Extension | Rescued a captive Derelict 6561 | -6/Extension | Rescued a captive Derelict 6562 | -6/Extension | Rescued a captive Derelict 6568 | -6/Extension | Rescued A7 6591 | -6/Extension | Discovered new exit (range 10) 6591 | -6/Extension | Discovered new exit (range 6) 6594 | -6/Extension | Identified exit to Cetus 6640 | -6/Extension | Entered Cetus 6640 | -6/Cetus | Accompanied by 8 allies (A7) 6645 | -6/Cetus | Acquired a Cetus Manufacturing Module code from A7 6650 | -6/Cetus | Spotted Cetus Guard 6650 | -6/Cetus | Spotted Cetus Guard 6650 | -6/Cetus | Spotted Cetus Guard 6665 | -6/Cetus | Spotted Cetus Guard 6678 | -6/Cetus | Destroyed Cetus Guard 6684 | -6/Cetus | Destroyed Cetus Guard 6687 | -6/Cetus | Allies destroyed Cetus Guard 6708 | -6/Cetus | Started Cetus Manufacturing Module 6733 | -6/Cetus | Manufactured an Enhanced Grunt 6754 | -6/Cetus | Escorted A7 to Cetus Mainframe 6758 | -6/Cetus | Manufactured an Enhanced Grunt 6776 | -6/Cetus | Discovered new exit (range 16) 6783 | -6/Cetus | Manufactured an Enhanced Grunt 6793 | -6/Cetus | Identified exit to Archives 6808 | -6/Cetus | Manufactured an Enhanced Grunt 6833 | -6/Cetus | Manufactured an Enhanced Grunt 6889 | -6/Cetus | Entered Archives 6889 | -6/Archives | Accompanied by 11 allies (A7) 6894 | -6/Archives | Received a hacking code to weaken MAIN.C 6918 | -6/Archives | Discovered new exit (range 15) 6941 | -6/Archives | Build established: Scavenger-Mutant 6956 | -6/Archives | Discovered new exit (range 15) 7137 | -6/Archives | Identified exit to Hub_04(d) 7185 | -6/Archives | Entered Hub_04(d) 7185 | -6/Hub_04(d) | Accompanied by 10 allies 7238 | -6/Hub_04(d) | Discovered new exit (range 15) 7281 | -6/Hub_04(d) | Discovered new exit (range 13) 7346 | -6/Hub_04(d) | Network Hub disabled 7365 | -6/Hub_04(d) | Identified exit to Factory 7381 | -6/Hub_04(d) | Entered Factory 7381 | -5/Factory | Accompanied by 5 allies 7381 | -5/Factory | Evolved 2 slots: Utility x2 7434 | -5/Factory | Fabricated Mic. Nuclear Core (x2) 7491 | -5/Factory | Build established: Scavenger-Scout 7600 | -5/Factory | Discovered new exit (range 9) 7604 | -5/Factory | Identified exit to Upper Caves 7647 | -5/Factory | Entered Upper Caves 7647 | -5/Upper Caves | Accompanied by 3 allies 7647 | -5/Upper Caves | Spotted DX-ZO4(f) 7647 | -5/Upper Caves | Spotted 1G-5L7(f) 7648 | -5/Upper Caves | Encountered a Master Thief 7648 | -5/Upper Caves | Encountered a Master Thief 7650 | -5/Upper Caves | Allies destroyed DX-ZO4(f) 7651 | -5/Upper Caves | Allies destroyed 1G-5L7(f) 8031 | -5/Upper Caves | Learned 4 Factory zone layouts 8037 | -5/Upper Caves | Learned Factory garrison access intel 8119 | -5/Upper Caves | Discovered new exit (range 12) 8126 | -5/Upper Caves | Identified exit to Upper Caves 8138 | -5/Upper Caves | Entered another Upper Caves area 8138 | -5/Upper Caves | Accompanied by 2 allies 8147 | -5/Upper Caves | Encountered a Warlord checkpoint 8734 | -5/Upper Caves | Learned Factory terminal intel 8736 | -5/Upper Caves | Learned location of Armory (-3) 8777 | -5/Upper Caves | Discovered new exit (range 17) 8782 | -5/Upper Caves | Spotted I5-671(f) 8782 | -5/Upper Caves | Spotted 5V-725(f) 8783 | -5/Upper Caves | Encountered a Master Thief 8783 | -5/Upper Caves | Encountered a Master Thief 8783 | -5/Upper Caves | Spotted 9O-S3I(f) 8784 | -5/Upper Caves | Encountered a Master Thief 8790 | -5/Upper Caves | Identified exit to Warlord 8790 | -5/Upper Caves | Flying Fortress v7 stolen by Master Thief 8791 | -5/Upper Caves | Centrium Medium Armor Plating stolen by Master Thief 8793 | -5/Upper Caves | Entered Warlord 8793 | -5/Warlord | Self-destructed Last Messages --------------- 08711_ Penetrated by Slug. 08711_ Slug penetrates Wall. 08714_ Penetrated by Slug. 08715_ Slug penetrates Wall. 08718_ Penetrated by Slug. 08721_ Slug penetrates Wall. 08721_ Penetrated by Slug. 08734_ Acquired derelict log, extracted data. Data stored: Factory terminal intel. 08736_ Acquired derelict log, extracted data. World map updated: -3/Armory. 08740_ Slug penetrates Wall. 08756_ Lrn. Proton Cannon destroyed. 08777_ EXIT=FOUND 08785_ Slug penetrates Wall. 08790_ EXIT=IDENTIFIED: WARLORD 08790_ Flying Fortress v7 ripped off. 08791_ Centrium Medium Armor Plating ripped off. LOCATION=WARLORD GOAL=ESCAPE Map ----- +----------------------------------------------------+ | ????????????????????????????????? | | ????????????????????????????????? | | ????????????????????????????????? | | ????????????????????????????????? | | ????????????????????????????????? | | ????????????????????????????????? | | ????????????????????????????????? | | ????????????????????????????##??? | | ???????????????????????????? #??? | | ???????????????????????????? #??? | | ???????????????????????????? #??? | | ??????????????????????????? ##?? | | ??????????????????????????? #?? | | ??????????????????????????? ??? | | ??????????????????????????? ??? | | ??????????????????????????? ??? | | ??????????????????????????? ???? | | ?????????????????????????? ???? | | ?????????????????????????? #???? | | ?????????????????????????? #???? | | ?????????????????????????? #???? | | ?????????????????????????? ##??? | | ????????????????????????## #??? | | ???????????????????????## #??? | | ???????????????????????# #??? | | ???????????????????????# @ #??? | | ???????????????????????# #??? | | ???????????????????????# #??? | | ???????????????????????## ##??? | | ???????????????????????? #???? | | ???????????????????????? ##???? | | ????????????????????????####????? | | ????????????????????????????????? | | ????????????????????????????????? | | ????????????????????????????????? | | ????????????????????????????????? | | ????????????????????????????????? | | ????????????????????????????????? | | ????????????????????????????????? | | ????????????????????????????????? | | ????????????????????????????????? | | ????????????????????????????????? | | ????????????????????????????????? | | ????????????????????????????????? | | ????????????????????????????????? | | ????????????????????????????????? | | ????????????????????????????????? | | ????????????????????????????????? | | | | | +----------------------------------------------------+ Best States ------------- Heat Dissipation 48 Energy Generation 16 Energy Capacity 290 Matter Stores 500 Matter Capacity 500 Sight Range 22 Robot Scan Range 30 Terrain Scan Range 20 Terrain Scan Density 135 Armor Coverage 600 Propulsion Shielding 66 Utility Shielding 66 Evasion (%) 66 Recoil Reduction 3 Offensive Hacking 26 Defensive Hacking 12 Item Schematics ----------------- Hcp. Storage Unit | -10/Materials | Hacked Rocket Launcher | -7/Factory | Scanalyzed Mic. Nuclear Core | -7/Factory | Hacked Robot Schematics ------------------ None Fabricated ------------ Mic. Nuclear Core | x2 | -5/Factory Alien Tech Used ----------------- None Achievements -------------- It Was An Accident, I Swear More Dakka Please Part-time Excavator Challenges ------------ None Game ------ Seed VariableShrapnelReplicator Manual? 0 Play Time 01:15:56 Cumulative 5.4 hours Start 2021.08.16 @ 19:59:48 End 2021.08.16 @ 21:20:07 Sessions 1 Manual Loads 0 Difficulty Rogue Special Mode None Game No. 3 Rogue 3 Adventurer 0 Explorer 0 Win Type - Total 0 Types 0/0/0/0/0/0/0/0/0 Lore% 4 Gallery% 15 Achievement% 26 Wizard Run 0 Options --------- ASCII 0 Keyboard 0 Movement Numpad Keybinds 0 Fullscreen 2 Font 18/TerminusBold Map View 76x50 Tactical HUD 1 Map Filters NONE Filters NONE Steam 0 RUN: b760b7b1-dcc0-4c83-94e6-bd94593c11cd